[Event "CCT Chessable Masters Playin Match 2025"]
[Site "Online"]
[Date "2025.02.17"]
[Round "1.2"]
[White "Artemiev, Vladislav"]
[Black "Lazavik, Denis"]
[Result "0-1"]
[Annotator "TA"]
[ECO "E12"]
[WhiteElo "2691"]
[BlackElo "2572"]
[PlyCount "142"]
[EventDate "2025.02.13"]
[EventType "k.o."]
[EventCountry "NET"]
[SourceTitle "playchess.com"]
[Source "ChessBase"]
[SourceQuality "1"]
[TimeControl "600"]

{[%evp 12,142,28,0,8,0,47,2,2,6,0,0,0,-7,0,0,0,0,14,0,0,0,10,-31,-25,-23,-25,-44,41,36,36,-3,6,0,79,38,50,41,56,0,0,-104,-108,-104,-123,-106,-121,-96,-89,-133,-122,-134,-127,-127,-136,-138,-138,-136,-142,-158,-129,-287,-283,-274,-276,-278,-279,-272,-260,-270,-249,-258,-262,-285,-179,-207,-147,-299,-58,-58,-58,-58,-58,-58,-58,-58,-64,-66,-42,-174,-2,-14,0,-217,0,0,0,0,0,0,0,0,0,0,0,0,0,0,0,-6,0,-25,-25,-65,-74,-178,-179,-179,-179,-179,-186,-186,-186,-204,-179,-179,-179,-186,-186,-186,-186,-29986,-29986]} 1. d4 {[%emt 0:00:02]} Nf6 {[%emt 0:00:01]} 2. Nf3 {[%emt 0:00:01]} b6 {[%emt 0:00:01]} 3. c4 {[%emt 0:00:10]} Bb7 {[%emt 0:00:01]} 4. Nc3 {[%emt 0:00:22]} e6 {[%emt 0:00:02]} 5. a3 {[%emt 0:00:02]} g6 {[%emt 0:00:22]} 6. Bg5 {[%emt 0:00:14]} Bg7 {[%emt 0:00:04] The old main line.} 7. e3 {[%emt 0:00:02]} O-O {[%emt 0:00:02] E12: Queen's Indian: Unusual White 4th moves, 4 a3, 4 Nc3 Bb7 5 a3 and 4 Nc3 Bb7 .} 8. Be2 {[%emt 0:00:03]} d6 {[%emt 0:00:02]} (8... h6 $11 {was preferable.} 9. Bf4 d6) 9. O-O {[%emt 0:00:03]} h6 {[%emt 0:00:02] The position is equal.} 10. Bh4 {[%emt 0:00:01]} g5 {[%emt 0:00:04]} 11. Bg3 {[%emt 0:00:01]} Nh5 {[%emt 0:00:01]} 12. Rc1 {[%emt 0:00:33]} Nd7 {[%emt 0:00:02]} 13. Nd2 $146 {[%emt 0:00:10]} ({Predecessor:} 13. Ne1 Nxg3 14. hxg3 c6 15. e4 c5 16. Nc2 cxd4 17. Nxd4 a6 18. b4 Rc8 19. Qd2 Ne5 20. f3 Nxc4 21. Bxc4 Rxc4 22. Nb3 Qc7 23. Ne2 Rc8 {0-1 Marin Posada,S (2272)-Barria Zuniga,D (2341) Titled Tuesday intern op 21st Jan Late blitz 2025 (3)}) 13... Nxg3 {[%emt 0:00:02]} 14. hxg3 {[%emt 0:00:00]} f5 {[%emt 0:00:27]} 15. Bf3 {[%emt 0:00:02]} c6 {[%emt 0:00:01]} 16. g4 {[%emt 0:01:04]} Nf6 {[%emt 0:00:13]} 17. d5 {[%emt 0:00:06]} fxg4 {[%emt 0:00:47]} 18. Bxg4 {[%emt 0:00:03]} exd5 {[%emt 0:00:09]} 19. cxd5 {[%emt 0:00:04]} c5 {[%emt 0:00:12]} (19... Nxg4 $15 20. Qxg4 cxd5) 20. Be6+ $14 {[%emt 0:00:15]} Kh8 {[%emt 0:00:01]} 21. e4 {[%emt 0:00:02]} Ba6 {[%emt 0:00:20]} 22. Re1 {[%emt 0:00:03]} Qe8 {[%emt 0:00:16]} (22... Nd7 $1 $11) 23. e5 {[%emt 0:00:22] White plays in the center} dxe5 {[%emt 0:00:02]} 24. Nde4 {[%emt 0:01:27]} (24. Rxe5 Nxd5 25. Re1 Nxc3 26. bxc3 Qg6 $17) 24... Rd8 {[%emt 0:00:16] Wards off Nd6} 25. Ng3 {[%emt 0:00:48] A dynamic duo of knights.} (25. b4 $14) 25... Bc4 $11 {[%emt 0:00:51][%cal Oc4d5]} 26. Nf5 {[%emt 0:00:34] [#]} (26. Re3 $1 $11 {keeps the balance.}) 26... Bxd5 $1 {[%emt 0:01:04][%mdl 512]} 27. Nxg7 {[%emt 0:00:15]} Kxg7 {[%emt 0:00:01]} 28. Bxd5 {[%emt 0:00:02]} Nxd5 {[%emt 0:00:00]} 29. Nxd5 {[%emt 0:00:01] and Rc2 should not be overlooked} Qe6 $1 {[%emt 0:00:03]} 30. Nc7 {[%emt 0:00:12]} Qf7 {[%emt 0:00:09]} 31. Qc2 {[%emt 0:00:13]} Qxc7 {[%emt 0:00:02]} 32. b4 {[%emt 0:00:00][%cal Rb4c5]} Rd5 {[%emt 0:00:11]} 33. Red1 {[%emt 0:00:26]} Rfd8 {[%emt 0:00:11]} 34. Rxd5 {[%emt 0:00:01]} Rxd5 $17 {[%emt 0:00:00][%mdl 4096] Endgame KQR-KQR. Black is two pawns up.} 35. Qe2 {[%emt 0:00:07]} Qd6 {[%emt 0:00:06]} 36. Re1 $2 {[%emt 0:00:07]} (36. Qf3 $17 {was worth a try.}) 36... cxb4 $19 {[%emt 0:00:15]} 37. axb4 {[%emt 0:00:00]} Qxb4 {[%emt 0:00:04]} 38. Rc1 {[%emt 0:00:01]} Qe7 {[%emt 0:00:04] Against Rc7} 39. Qe4 {[%emt 0:00:04]} Rd4 {[%emt 0:00:30]} 40. Qa8 {[%emt 0:00:07]} Rd8 {[%emt 0:00:06]} 41. Qc6 {[%emt 0:00:05]} Rd6 {[%emt 0:00:18]} 42. Qa8 {[%emt 0:00:01]} g4 {[%emt 0:00:08]} 43. g3 {[%emt 0:00:09]} h5 {[%emt 0:00:01]} 44. Qb8 $2 {[%emt 0:00:03]} (44. Qe4 $17) 44... Rd7 $2 {[%emt 0:00:09]} (44... Rd8 $19 45. Rc8 Rxc8 46. Qxc8 e4 47. Qc3+ Kh7) 45. Rc8 $15 {[%emt 0:00:13]} Qf6 {[%emt 0:00:08]} 46. Rg8+ {[%emt 0:00:09]} Kh7 {[%emt 0:00:01] ( -> ...Rd1+)} 47. Rf8 {[%emt 0:00:02]} Rf7 {[%emt 0:00:03]} 48. Rxf7+ {[%emt 0:00:01]} Qxf7 {[%emt 0:00:00]} 49. Qxe5 {[%emt 0:00:01] KQ-KQ. Black is two pawns up.} a5 {[%emt 0:00:10]} 50. Qd6 {[%emt 0:00:05]} ({White should play} 50. Qb5 $15) 50... Qb7 $2 {[%emt 0:00:30]} ({Better is} 50... Qb3 $1 $19 51. Qd7+ Kg6) 51. Qe5 $11 {[%emt 0:00:01]} Qf7 $2 {[%emt 0:00:07]} (51... Qd7 $11) 52. Qd6 $19 {[%emt 0:00:01]} a4 $2 {[%emt 0:00:04]} (52... Qb3 $1 $19 {...a4 would now be deadly.} 53. Qd7+ Kg6) 53. Qxb6 $11 {[%emt 0:00:01]} Qb3 {[%emt 0:00:01]} 54. Qf6 {[%emt 0:00:15]} a3 {[%emt 0:00:04]} 55. Qf5+ {[%emt 0:00:04]} Kg7 {[%emt 0:00:01]} 56. Qg5+ {[%emt 0:00:01]} Kf8 {[%emt 0:00:01]} 57. Qd8+ {[%emt 0:00:01]} Kf7 {[%emt 0:00:02]} 58. Qd7+ {[%emt 0:00:02]} Kf6 {[%emt 0:00:00]} 59. Qd6+ {[%emt 0:00:00]} Kf5 {[%emt 0:00:03]} 60. Qf4+ {[%emt 0:00:01]} Ke6 {[%emt 0:00:02]} 61. Qe4+ {[%emt 0:00:00]} Kd6 {[%emt 0:00:00]} 62. Qd4+ {[%emt 0:00:00]} Kc6 $1 {[%emt 0:00:01]} 63. Qe4+ {[%emt 0:00:01]} (63. Kh2 $17) 63... Kc5 $1 $19 {[%emt 0:00:03]} 64. Qe5+ {[%emt 0:00:01] [#]} Kc4 $1 {[%emt 0:00:00]} 65. Qe4+ {[%emt 0:00:01]} Kc3 {[%emt 0:00:01]} 66. Qe5+ {[%emt 0:00:02]} Kc2 {[%emt 0:00:01]} 67. Qe2+ {[%emt 0:00:00]} Kb1 {[%emt 0:00:01]} 68. Qe1+ {[%emt 0:00:00] [#]} Kb2 $1 {[%emt 0:00:02]} 69. Qd2+ {[%emt 0:00:02]} Qc2 {[%emt 0:00:01]} 70. Qb4+ {[%emt 0:00:00]} Ka2 {[%emt 0:00:01] ( -> ...Qb1+)} 71. Qb5 $2 {[%emt 0:00:03]} (71. Kg2 $19) 71... Qb1+ {[%emt 0:00:02] Weighted Error Value: White=0.21 (precise) /Black=0.28 (precise)   Missed win:     	---       	Black=3      Mistake:       	White=7     	Black=4      Inaccurate:     	White=6     	Black=1      OK:         	White=23    	Black=18     Best:        	White=6     	Black=8      Strong:       	---       	Black=5} 0-1

[Event "CCT Chessable Masters Playin Match 2025"]
[Site "Online"]
[Date "2025.02.17"]
[Round "1.2"]
[White "Grischuk, Alexander"]
[Black "Sadhwani, Raunak"]
[Result "1-0"]
[Annotator "TA"]
[ECO "C65"]
[WhiteElo "2687"]
[BlackElo "2666"]
[PlyCount "89"]
[EventDate "2025.02.13"]
[EventType "k.o."]
[EventCountry "NET"]
[SourceTitle "playchess.com"]
[Source "ChessBase"]
[SourceQuality "1"]
[TimeControl "600"]

{[%evp 9,89,16,23,16,27,20,23,0,0,0,0,0,0,0,0,0,27,24,17,22,25,49,47,-6,-15,-15,0,-6,0,0,17,17,155,178,157,170,165,0,0,0,0,0,74,72,73,81,66,0,0,0,0,0,0,-52,-50,-58,-35,-40,-38,-69,0,0,67,45,447,442,322,0,114,78,172,175,29985,29986,29986,29987,29987,976,918,896,29998,29999]} 1. e4 {[%emt 0:00:00]} e5 {[%emt 0:00:01]} 2. Nf3 {[%emt 0:00:02]} Nc6 {[%emt 0:00:00]} 3. Bb5 {[%emt 0:00:00]} Nf6 {[%emt 0:00:01]} 4. d3 {[%emt 0:00:02]} Bc5 {[%emt 0:00:01]} 5. Bxc6 {[%emt 0:00:00]} dxc6 {[%emt 0:00:00]} 6. Nbd2 {[%emt 0:00:01][%cal Od2c4] C65: Ruy Lopez: Berlin Defence (3...Nf6), unusual lines and 4 0-0 Bc5.} (6. Nxe5 $2 Qd4 7. Qe2 Qxe5 $19) 6... Be6 {[%emt 0:00:01]} 7. O-O {[%emt 0:00:02]} (7. Nxe5 $2 Qd4 8. Rf1 Qxe5 $19) 7... Bd6 {[%emt 0:00:03]} 8. d4 {[%emt 0:00:03] White has an edge. 8.Nb3 gains popularity.} Nd7 {[%emt 0:00:01]} 9. dxe5 {[%emt 0:00:02]} Nxe5 {[%emt 0:00:00]} 10. Nxe5 {[%emt 0:00:01]} Bxe5 {[%emt 0:00:00]} 11. f4 {[%emt 0:00:00]} Bd4+ {[%emt 0:00:00]} 12. Kh1 {[%emt 0:00:01]} f5 {[%emt 0:00:00]} 13. Qh5+ {[%emt 0:00:05]} g6 {[%emt 0:00:02]} 14. Qe2 {[%emt 0:00:01]} fxe4 {[%emt 0:00:32]} 15. Nxe4 {[%emt 0:00:52]} O-O {[%emt 0:00:04]} 16. Ng5 $5 $146 {[%emt 0:00:15][%mdl 8] An interesting novelty.} (16. Rd1 $1 $14 Re8 17. Be3 (17. c3 c5 $11)) (16. Rd1 Re8 17. Be3 c5 18. Bxd4 cxd4 19. c3 c5 20. Qb5 Bf7 21. Nxc5 Qb6 22. a4 Rad8 23. cxd4 Qxb5 24. axb5 b6 25. Na4 Bb3 26. Rf1 {½-½ Neagu,L (2398)-Zarnescu,M (2402) ROM-ch62 email 2023}) 16... Bd5 $11 {[%emt 0:01:06]} 17. c4 $1 {[%emt 0:00:06]} Bf7 {[%emt 0:00:22]} 18. f5 {[%emt 0:00:04]} Qe8 {[%emt 0:00:07]} 19. Qd3 $40 {[%emt 0:01:26][%mdl 128] White attacks.} Rd8 {[%emt 0:00:02]} 20. Bf4 {[%emt 0:00:06]} Bxb2 {[%emt 0:00:44]} (20... Qd7 $11) 21. Qh3 $16 {[%emt 0:00:03][%csl Gg5][%cal Rh3h7]} h5 {[%emt 0:00:00]} 22. Rae1 {[%emt 0:00:40]} Qd7 {[%emt 0:00:01] [#]} 23. Ne6 $2 {[%emt 0:02:08]} (23. fxg6 Bxc4 24. Qxh5 Bxf1 $11) ({Only move:} 23. Qb3 $1 $18 {fxg6 would now be deadly.} Bg7 24. fxg6 (24. Qxb7 $2 Bxc4 25. Ne6 Bxf1 $19) 24... Bxg6 25. Ne6 (25. Qxb7 Rxf4 26. Rxf4 Qd2 $15)) 23... Bxe6 $11 {[%emt 0:00:14]} 24. fxe6 {[%emt 0:00:00]} (24. Rxe6 Bg7 25. Rxg6 (25. fxg6 $2 Rxf4 26. Rfe1 Rdf8 $19) 25... Rxf5 $17) 24... Qe7 {[%emt 0:00:01]} 25. Qg3 {[%emt 0:01:00][%csl LRc7,LRg6]} Bg7 {[%emt 0:01:35]} (25... Rf6 $11) 26. Qxg6 $16 {[%emt 0:00:24] White attacks} Rf6 {[%emt 0:00:01]} 27. Qxh5 {[%emt 0:00:10] White has more active pieces.} Rxe6 {[%emt 0:00:01]} 28. Rxe6 {[%emt 0:00:02]} (28. Bg3 $14) 28... Qxe6 $11 {[%emt 0:00:00]} 29. Bxc7 {[%emt 0:00:17]} Qxc4 {[%emt 0:00:07]} 30. Rg1 {[%emt 0:00:09]} Rf8 {[%emt 0:00:11][%cal Oc4f7]} 31. Qd1 {[%emt 0:00:03]} (31. Qg5 $11) 31... Qxa2 $15 {[%emt 0:00:12]} 32. h3 {[%emt 0:00:01]} Qf7 {[%emt 0:00:03]} 33. Bg3 {[%emt 0:00:03]} a5 {[%emt 0:00:04]} (33... b5 34. Qc2 Qc4 35. Qg6 Rf6) 34. Re1 {[%emt 0:00:01]} Ra8 {[%emt 0:00:10]} ({Better is} 34... b5 $15 35. Qd6 Re8) 35. Re4 {[%emt 0:00:16]} a4 {[%emt 0:00:17]} 36. Rg4 {[%emt 0:00:02][%cal Og3e5][%mdl 1024] White has compensation.} ({Much weaker is} 36. Rxa4 Rxa4 37. Qxa4 c5 $11) (36. Qg4 {feels hotter.} b5 37. Be5 Re8 38. Rf4) 36... Kh8 $2 {[%emt 0:00:34][%mdl 8192] [#]} (36... Qf6 $14) 37. Rh4+ $1 $18 {[%emt 0:00:01]} Kg8 {[%emt 0:00:01]} 38. Rg4 $2 {[%emt 0:00:01]} (38. Qd3 $18 {is the precise move to win.} a3 39. Qh7+ Kf8 40. Bd6+ (40. Rf4 Qxf4 41. Bxf4 a2 $18) 40... Ke8 41. Rf4 Qxf4 42. Bxf4) 38... Kh8 $16 {[%emt 0:00:00]} 39. Qc2 {[%emt 0:00:14]} Bf6 {[%emt 0:00:35] Inhibits Rh4+.} (39... Ra5 $16) 40. Qf5 {[%emt 0:00:02] White threatens Be5 and mate.} Rf8 $2 {[%emt 0:00:18]} (40... Rg8 $18) 41. Be5 {[%emt 0:00:05]} Bxe5 {[%emt 0:00:23]} 42. Qxe5+ {[%emt 0:00:06]} Kh7 {[%emt 0:00:00]} 43. Rh4+ {[%emt 0:00:01]} (43. Qg5 $142 Qf1+ 44. Kh2 Qf4+ 45. Rxf4 Rxf4 46. Qxf4 a3 47. Qf7+ Kh8 48. g4 (48. Qxb7 Kg8 $18)) 43... Kg6 $18 {[%emt 0:00:02]} 44. Qh5+ {[%emt 0:00:01]} Kg7 {[%emt 0:00:04]} 45. Qh6+ {[%emt 0:00:03] Weighted Error Value: White=0.34/Black=0.73  Loses game:     	---       	Black=1      Missed win:     	White=2     	---        Mistake:       	White=3     	Black=6      Inaccurate:     	White=2     	Black=1      OK:         	White=11    	Black=12     Best:        	White=3     	Black=7      Strong:       	White=2     	---} 1-0

[Event "CCT Chessable Masters Playin Match 2025"]
[Site "Online"]
[Date "2025.02.17"]
[Round "1.2"]
[White "Yakubboev, Nodirbek"]
[Black "Yu, Yangyi"]
[Result "1/2-1/2"]
[Annotator "TA"]
[ECO "D37"]
[WhiteElo "2659"]
[BlackElo "2715"]
[PlyCount "171"]
[EventDate "2025.02.13"]
[EventType "k.o."]
[EventCountry "NET"]
[SourceTitle "playchess.com"]
[Source "ChessBase"]
[SourceQuality "1"]
[TimeControl "600"]

{[%evp 19,171,21,17,13,24,16,25,17,12,14,28,25,35,31,53,30,39,28,42,34,47,24,29,8,8,8,46,9,23,9,5,7,10,5,17,8,39,56,60,21,24,0,61,68,62,54,54,61,63,40,47,15,42,10,60,60,60,60,79,79,79,79,93,62,62,69,119,107,111,62,62,55,67,64,210,80,241,252,506,473,477,149,133,113,113,92,107,68,58,84,93,89,85,82,102,77,302,302,293,229,176,0,482,103,115,111,222,0,0,0,6079,0,0,0,0,0,5,0,0,0,0,0,0,0,0,0,0,0,0,0,0,0,0,0,0,0,0,0,0,0,0,0,0,0,0,0,0,0,0,0,0,0,0,0]} 1. d4 {[%emt 0:00:02]} Nf6 {[%emt 0:00:02]} 2. Nf3 {[%emt 0:00:01]} e6 {[%emt 0:00:02]} 3. Bf4 {[%emt 0:00:03]} Be7 {[%emt 0:00:03]} 4. c4 {[%emt 0:00:13]} d5 {[%emt 0:00:04]} 5. Nc3 {[%emt 0:00:01]} O-O {[%emt 0:00:01]} 6. e3 {[%emt 0:00:02]} c5 {[%emt 0:00:01]} 7. dxc5 {[%emt 0:00:02]} Bxc5 {[%emt 0:00:00]} 8. Qc2 {[%emt 0:00:03]} Nc6 {[%emt 0:00:02]} 9. Rd1 {[%emt 0:00:02]} Qa5 {[%emt 0:00:18]} 10. a3 {[%emt 0:00:01]} Be7 {[%emt 0:00:08] 10...h6 is more fashionable.} 11. Be2 {[%emt 0:00:09] D37: Queen's Gambit Declined: 5 Bf4.} Ne4 {[%emt 0:00:12]} 12. cxd5 {[%emt 0:00:11]} Nxc3 {[%emt 0:00:01]} 13. bxc3 {[%emt 0:00:01] A sharp opening. White has an edge.} exd5 {[%emt 0:00:01]} 14. O-O {[%emt 0:00:00]} h6 {[%emt 0:00:15]} 15. a4 {[%emt 0:00:11]} Qc5 $146 {[%emt 0:00:33]} (15... Rd8 16. Qb3 Qc5 17. Nd4 Na5 18. Qb5 b6 19. Qxc5 Bxc5 20. Bf3 Bb7 21. Nb5 Rd7 22. Bg4 Re7 23. Bf3 Rd7 24. Bg4 Re7 25. Bf3 Rd7 {½-½ Ter Sahakyan,S (2605)-Tan,Z (2514) Speed Chess Q2 blitz 2022 (9)}) 16. Rb1 {[%emt 0:00:22]} a6 {[%emt 0:00:24] Prevents Rb5} 17. h3 {[%emt 0:00:18]} Bf6 {[%emt 0:00:12]} 18. Rfc1 {[%emt 0:00:03]} Na5 {[%emt 0:00:06]} 19. Nd4 {[%emt 0:00:21]} Bd7 {[%emt 0:00:06]} 20. Qa2 {[%emt 0:00:18]} Rfd8 {[%emt 0:01:23]} 21. Rb4 {[%emt 0:00:41]} Rac8 {[%emt 0:00:05]} 22. Qb1 {[%emt 0:00:20]} Be8 {[%emt 0:00:23]} 23. Kh2 {[%emt 0:00:29]} Bd7 {[%emt 0:00:09]} 24. Bd3 {[%emt 0:00:10]} Qe7 {[%emt 0:00:10]} 25. Rb6 {[%emt 0:00:20]} Be5 {[%emt 0:00:07]} 26. Bxe5 {[%emt 0:00:31]} Qxe5+ {[%emt 0:00:01]} 27. Kg1 {[%emt 0:00:00]} Rc7 {[%emt 0:00:27][%cal Oe5e7]} (27... Qe7 {simplifies} 28. Qb4 Qxb4 29. Rxb4 Rc5) 28. Qb4 {[%emt 0:00:07]} Nc6 {[%emt 0:00:02]} 29. Qb2 {[%emt 0:00:29]} Na5 {[%emt 0:00:12]} 30. Qb4 {[%emt 0:00:28]} Nc6 {[%emt 0:00:01]} 31. Nxc6 {[%emt 0:00:00]} Bxc6 {[%emt 0:00:01]} 32. Qd4 {[%emt 0:00:02]} Qg5 {[%emt 0:00:14]} 33. Rcb1 {[%emt 0:00:05]} Rdc8 {[%emt 0:00:05]} 34. h4 {[%emt 0:00:06]} Qe7 {[%emt 0:00:03]} 35. Bf5 {[%emt 0:00:04]} Re8 {[%emt 0:00:03]} 36. a5 {[%emt 0:00:13][%csl Ob7,Od5] Black has weak pawns} Qe5 {[%emt 0:00:06]} ({Black should play} 36... Bb5 $11) 37. Bd3 $14 {[%emt 0:00:04]} h5 {[%emt 0:00:12]} 38. R1b4 {[%emt 0:00:06]} Qxd4 {[%emt 0:00:04]} 39. cxd4 {[%emt 0:00:03]} Kf8 {[%emt 0:00:04]} 40. Rb2 {[%emt 0:00:11]} Ke7 {[%emt 0:00:03]} 41. f3 {[%emt 0:00:02]} Kd8 {[%emt 0:00:09]} 42. Kf2 {[%emt 0:00:02]} g6 {[%emt 0:00:03]} (42... Ree7 $14) 43. Rc2 $16 {[%emt 0:00:03][%cal Od3a6]} Re6 {[%emt 0:00:05]} 44. Rc5 {[%emt 0:00:02]} (44. e4 $1 $16) 44... Rd6 $1 $14 {[%emt 0:00:13]} 45. Bb1 {[%emt 0:00:05] White is much more active.} Re7 {[%emt 0:00:16]} 46. Ba2 {[%emt 0:00:05][%cal Oe3e4]} Kc7 {[%emt 0:00:07]} (46... Rc7 $14) 47. Bb3 {[%emt 0:00:03]} (47. e4 $1 $18 {[%cal Re4d5]} dxe4 48. d5 e3+ 49. Ke1 (49. Ke2 Re5 $18)) 47... Kb8 $2 {[%emt 0:00:11]} (47... Kd7 $16) 48. Ba4 $18 {[%emt 0:00:08]} Ree6 $2 {[%emt 0:00:17]} (48... Kc7 {was necessary.} 49. Bxc6 Rxc6) 49. Bxc6 {[%emt 0:00:18]} Rxc6 {[%emt 0:00:00]} 50. Rbxc6 {[%emt 0:00:04]} ({Weaker is} 50. Rxd5 Rxb6 51. axb6 Rxb6 $14) (50. Rcxc6 $18 {and the rest is easy.} Rxc6 51. Rxc6 bxc6 52. Kg3) 50... bxc6 {[%emt 0:00:01][%mdl 4096] Endgame KR-KR} 51. Rc3 {[%emt 0:00:01]} Kc7 {[%emt 0:00:11]} 52. Rb3 {[%emt 0:00:02]} c5 {[%emt 0:00:07]} 53. dxc5 {[%emt 0:00:02]} Kc6 {[%emt 0:00:00]} 54. g4 {[%emt 0:00:11]} Kxc5 {[%emt 0:00:12]} 55. Rb7 {[%emt 0:00:02]} hxg4 {[%emt 0:00:11]} 56. fxg4 {[%emt 0:00:01][%cal Ob7b6]} Rf6+ {[%emt 0:00:02]} 57. Kg3 {[%emt 0:00:02][%cal Ob7b6]} Kc4 $2 {[%emt 0:00:11] [#]} (57... Rf1 $16) 58. Rb6 $1 {[%emt 0:00:02]} Rf1 {[%emt 0:00:06]} 59. Rxa6 {[%emt 0:00:04]} Kd3 {[%emt 0:00:01] [#]} 60. Kg2 $2 {[%emt 0:00:01]} (60. Rb6 $1 $18) 60... Ra1 $2 {[%emt 0:00:04][%mdl 8192]} (60... Ke2 $1 $11) 61. Kf2 $2 {[%emt 0:00:02]} (61. h5 $18) 61... Ra2+ $16 {[%emt 0:00:01]} 62. Kf3 {[%emt 0:00:02]} Re2 {[%emt 0:00:00]} 63. Rf6 $2 {[%emt 0:00:02]} (63. h5 $18) 63... Rxe3+ $11 {[%emt 0:00:02]} 64. Kf2 {[%emt 0:00:00][%cal Of6f3] and Rf3! should not be overlooked} Rh3 $2 {[%emt 0:00:04][%mdl 8192]} (64... Re2+ $11 65. Kg3 d4) 65. a6 $2 {[%emt 0:00:20]} ({And not} 65. Rxf7 Rxh4 66. Rf3+ Ke4 $11) (65. Rf3+ $18 Rxf3+ 66. Kxf3) 65... Rxh4 {[%emt 0:00:01] The position is equal.} 66. a7 {[%emt 0:00:02]} (66. Rxf7 Rh2+ 67. Kf3 Ra2) 66... Rh8 {[%emt 0:00:01]} (66... Rh2+ 67. Ke1 Ra2 68. Rf3+ Ke4 69. Rxf7) 67. Rxf7 {[%emt 0:00:03]} d4 {[%emt 0:00:03]} 68. Kf3 {[%emt 0:00:01]} g5 {[%emt 0:00:04]} 69. Rg7 {[%emt 0:00:05]} Ra8 {[%emt 0:00:01]} 70. Rd7 {[%emt 0:00:01]} Rf8+ {[%emt 0:00:02]} 71. Kg3 {[%emt 0:00:01]} Ke3 {[%emt 0:00:01]} 72. Rb7 {[%emt 0:00:01]} Ra8 {[%emt 0:00:02]} 73. Re7+ {[%emt 0:00:01]} Kd2 {[%emt 0:00:03]} 74. Kf3 {[%emt 0:00:01]} d3 {[%emt 0:00:01]} 75. Ke4 {[%emt 0:00:01]} Rd8 {[%emt 0:00:03]} 76. Rd7 {[%emt 0:00:01]} Re8+ {[%emt 0:00:05]} 77. Kf5 {[%emt 0:00:02]} Kc2 {[%emt 0:00:02]} 78. Rc7+ {[%emt 0:00:02]} Kd1 {[%emt 0:00:00]} 79. Re7 {[%emt 0:00:02]} Ra8 {[%emt 0:00:02]} 80. Kxg5 {[%emt 0:00:01]} d2 {[%emt 0:00:01]} 81. Kf6 {[%emt 0:00:04]} Kc1 {[%emt 0:00:00]} 82. Rc7+ {[%emt 0:00:00]} Kb1 {[%emt 0:00:01]} 83. Rd7 {[%emt 0:00:02]} Kc1 {[%emt 0:00:01]} 84. Rc7+ {[%emt 0:00:01]} Kb1 {[%emt 0:00:00]} 85. Rb7+ {[%emt 0:00:02]} Kc1 {[%emt 0:00:01]} 86. Rc7+ {[%emt 0:00:00] Weighted Error Value: White=0.20 (precise) /Black=0.36  Loses game:     	---       	Black=4      Missed win:     	White=5     	---        Mistake:       	White=2     	Black=4      Inaccurate:     	White=5     	Black=3      OK:         	White=21    	Black=34     Best:        	White=4     	Black=8      Strong:       	White=1     	Black=1} 1/2-1/2